[Event "CCT Chessable Masters Play-In 2025"]
[Site "Online"]
[Date "2025.02.17"]
[Round "1.84"]
[White "Abdisalimov, Abdimalik"]
[Black "Ma, Qun"]
[Result "0-1"]
[ECO "D10"]
[WhiteElo "2533"]
[BlackElo "2645"]
[PlyCount "142"]
[EventDate "2025.02.13"]
[EventType "swiss"]
[EventCountry "NET"]
[TimeControl "600"]
[BlackClock "0:00:50"]

1. d4 {[%emt 0:00:09]} d5 {[%emt 0:00:02]} 2. c4 {[%emt 0:00:02]} c6 {[%emt 0:00:05]} 3. cxd5 {[%emt 0:00:02]} cxd5 {[%emt 0:00:00]} 4. Bf4 {[%emt 0:00:01]} Nc6 {[%emt 0:00:03]} 5. e3 {[%emt 0:00:01]} Nf6 {[%emt 0:00:03]} 6. Bd3 {[%emt 0:00:02]} Bg4 {[%emt 0:00:07]} 7. Qb3 {[%emt 0:00:03]} Qd7 {[%emt 0:00:19]} 8. Nc3 {[%emt 0:00:02]} e6 {[%emt 0:00:05]} 9. Nge2 {[%emt 0:00:01]} Be7 {[%emt 0:00:30]} 10. O-O {[%emt 0:00:02]} O-O {[%emt 0:00:01]} 11. Rfc1 {[%emt 0:00:29]} Rfc8 {[%emt 0:00:02]} 12. f3 {[%emt 0:00:09]} Bh5 {[%emt 0:00:02]} 13. Na4 {[%emt 0:00:06]} Bg6 {[%emt 0:00:07]} 14. Bb5 {[%emt 0:00:14]} Qd8 {[%emt 0:00:27]} 15. Nc5 {[%emt 0:00:25]} Na5 {[%emt 0:00:18]} 16. Qd1 {[%emt 0:00:22]} Qb6 {[%emt 0:00:27]} 17. Nc3 {[%emt 0:01:17]} Bxc5 {[%emt 0:00:23]} 18. dxc5 {[%emt 0:00:00]} Qxc5 {[%emt 0:00:01]} 19. Bf1 {[%emt 0:00:31]} Nh5 {[%emt 0:00:29]} 20. Na4 {[%emt 0:00:31]} Qb4 {[%emt 0:00:24]} 21. Be5 {[%emt 0:00:14]} Nc6 {[%emt 0:00:24]} 22. Bc3 {[%emt 0:00:03]} Qe7 {[%emt 0:00:00]} 23. b4 {[%emt 0:00:01]} Nxb4 {[%emt 0:00:15]} 24. g4 {[%emt 0:00:16]} Nf6 {[%emt 0:00:01]} 25. h4 {[%emt 0:00:01]} h5 {[%emt 0:00:21]} 26. g5 {[%emt 0:00:14]} Ne8 {[%emt 0:00:01]} 27. Qb3 {[%emt 0:00:41]} Nc6 {[%emt 0:00:02]} 28. Bb2 {[%emt 0:00:10]} Nd6 {[%emt 0:00:02]} 29. Ba3 {[%emt 0:00:02]} Qd8 {[%emt 0:00:06]} 30. Bxd6 {[%emt 0:00:16]} Qxd6 {[%emt 0:00:00]} 31. Qxb7 {[%emt 0:00:00]} Ne7 {[%emt 0:00:27]} 32. f4 {[%emt 0:00:29]} Qa3 {[%emt 0:00:22]} 33. Qb3 {[%emt 0:00:23]} Qxb3 {[%emt 0:00:19]} 34. axb3 {[%emt 0:00:00]} Nf5 {[%emt 0:00:01]} 35. Kf2 {[%emt 0:00:07]} Nxh4 {[%emt 0:00:01]} 36. Ba6 {[%emt 0:00:03]} Rxc1 {[%emt 0:00:03]} 37. Rxc1 {[%emt 0:00:01]} Rb8 {[%emt 0:00:06]} 38. Nc5 {[%emt 0:00:07]} Be4 {[%emt 0:00:23]} 39. Nd7 {[%emt 0:00:03]} Rd8 {[%emt 0:00:02]} 40. Rc7 {[%emt 0:00:01]} Nf5 {[%emt 0:00:00]} 41. Rxa7 {[%emt 0:00:08]} h4 {[%emt 0:00:01]} 42. Bf1 {[%emt 0:00:17]} Rc8 {[%emt 0:00:08]} 43. Ra2 {[%emt 0:00:13]} Kh7 {[%emt 0:00:22]} 44. b4 {[%emt 0:00:04]} d4 {[%emt 0:00:14]} 45. exd4 {[%emt 0:00:02]} Bc6 {[%emt 0:00:03]} 46. Ne5 {[%emt 0:00:07]} Bd5 {[%emt 0:00:01]} 47. Rb2 {[%emt 0:00:09]} Ng3 {[%emt 0:00:07]} 48. Bd3+ {[%emt 0:00:05]} Kg8 {[%emt 0:00:09]} 49. b5 {[%emt 0:00:17]} f6 {[%emt 0:00:01]} 50. gxf6 {[%emt 0:00:09]} gxf6 {[%emt 0:00:00]} 51. Nf3 {[%emt 0:00:01]} Nh1+ {[%emt 0:00:06]} 52. Ke3 {[%emt 0:00:02]} h3 {[%emt 0:00:03]} 53. Rh2 {[%emt 0:00:02]} Ng3 {[%emt 0:00:23]} 54. Rxh3 {[%emt 0:00:02]} Nf5+ {[%emt 0:00:00]} 55. Kd2 {[%emt 0:00:17]} Nd6 {[%emt 0:00:07]} 56. Rg3+ {[%emt 0:00:03]} Kf7 {[%emt 0:00:01]} 57. Ne1 {[%emt 0:00:05]} Ra8 {[%emt 0:00:01]} 58. Nc2 {[%emt 0:00:01]} Ra2 {[%emt 0:00:01]} 59. Kc3 {[%emt 0:00:01]} Ra8 {[%emt 0:00:05]} 60. Nb4 {[%emt 0:00:01]} Rc8+ {[%emt 0:00:02]} 61. Kd2 {[%emt 0:00:00]} Bc4 {[%emt 0:00:01]} 62. Bxc4 {[%emt 0:00:03]} Rxc4 {[%emt 0:00:00]} 63. Rb3 {[%emt 0:00:01]} Nxb5 {[%emt 0:00:03]} 64. Nc2 {[%emt 0:00:02]} Rxc2+ {[%emt 0:00:02]} 65. Kd3 {[%emt 0:00:00]} Rf2 {[%emt 0:00:14]} 66. Ke3 {[%emt 0:00:01]} Rf3+ {[%emt 0:00:01]} 67. Kxf3 {[%emt 0:00:01]} Nxd4+ {[%emt 0:00:01]} 68. Ke4 {[%emt 0:00:01]} Nxb3 {[%emt 0:00:00]} 69. f5 {[%emt 0:00:01]} Nc5+ {[%emt 0:00:00]} 70. Kf4 {[%emt 0:00:01]} e5+ {[%emt 0:00:01]} 71. Kg4 Ne4 {[%emt 0:00:01]} 0-1

[Event "CCT Chessable Masters Play-In 2025"]
[Site "Online"]
[Date "2025.02.17"]
[Round "2.1"]
[White "Hakobyan, Aram"]
[Black "Vachier-Lagrave, Maxime"]
[Result "0-1"]
[ECO "B92"]
[WhiteElo "2635"]
[BlackElo "2729"]
[PlyCount "74"]
[EventDate "2025.02.13"]
[EventType "swiss"]
[EventCountry "NET"]
[TimeControl "600"]
[WhiteClock "0:04:43"]
[BlackClock "0:06:09"]

1. e4 {[%emt 0:00:01]} c5 {[%emt 0:00:03]} 2. Nf3 {[%emt 0:00:00]} d6 {[%emt 0:00:03]} 3. d4 {[%emt 0:00:02]} cxd4 {[%emt 0:00:00]} 4. Nxd4 {[%emt 0:00:01]} Nf6 {[%emt 0:00:01]} 5. Nc3 {[%emt 0:00:00]} a6 {[%emt 0:00:00]} 6. Be2 {[%emt 0:00:01]} e5 {[%emt 0:00:01]} 7. Nb3 {[%emt 0:00:00]} Be7 {[%emt 0:00:01]} 8. O-O {[%emt 0:00:01]} O-O {[%emt 0:00:01]} 9. Qd3 {[%emt 0:00:01]} Be6 {[%emt 0:00:23]} 10. Nd5 {[%emt 0:00:02]} Nxd5 {[%emt 0:00:30]} 11. exd5 {[%emt 0:00:00]} Bc8 {[%emt 0:00:00]} 12. a4 {[%emt 0:00:02]} Nd7 {[%emt 0:00:07]} 13. a5 {[%emt 0:00:03]} f5 {[%emt 0:00:01]} 14. Nd2 {[%emt 0:00:13]} b5 {[%emt 0:00:18]} 15. axb6 {[%emt 0:00:04]} Nxb6 {[%emt 0:00:01]} 16. c4 {[%emt 0:00:14]} a5 {[%emt 0:00:04]} 17. b3 {[%emt 0:00:10]} e4 {[%emt 0:00:12]} 18. Qe3 {[%emt 0:00:11]} Bg5 {[%emt 0:00:16]} 19. f4 {[%emt 0:00:09]} exf3 {[%emt 0:00:01]} 20. Qxf3 {[%emt 0:00:01]} Nd7 {[%emt 0:00:01]} 21. Kh1 {[%emt 0:00:30]} Ne5 {[%emt 0:00:03]} 22. Qf2 {[%emt 0:00:05]} Bd7 {[%emt 0:00:16]} 23. Nf3 {[%emt 0:00:25]} Ng4 {[%emt 0:00:01]} 24. Qe1 {[%emt 0:00:07]} Bf6 {[%emt 0:00:06]} 25. Ra2 {[%emt 0:00:02]} Re8 {[%emt 0:00:08]} 26. Qg3 {[%emt 0:01:05]} Qb6 {[%emt 0:00:09]} 27. Bd1 {[%emt 0:00:03]} Ne3 {[%emt 0:00:06]} 28. Bxe3 {[%emt 0:00:36]} Rxe3 {[%emt 0:00:00]} 29. Qf4 {[%emt 0:00:00]} Rae8 {[%emt 0:00:08]} 30. Raf2 {[%emt 0:00:11]} R8e4 {[%emt 0:00:15]} 31. Qxe4 {[%emt 0:00:38]} Rxe4 {[%emt 0:00:02]} 32. Bc2 {[%emt 0:00:00]} Re3 {[%emt 0:00:03]} 33. h3 {[%emt 0:00:06]} g6 {[%emt 0:00:09]} 34. g4 {[%emt 0:00:01]} f4 {[%emt 0:00:08]} 35. g5 {[%emt 0:00:05]} Be5 {[%emt 0:00:00]} 36. Kh2 {[%emt 0:00:05]} Kg7 {[%emt 0:00:11]} 37. h4 {[%emt 0:00:02]} Bg4 {[%emt 0:00:02]} 0-1

[Event "CCT Chessable Masters Play-In 2025"]
[Site "Online"]
[Date "2025.02.17"]
[Round "2.2"]
[White "Aronian, Levon"]
[Black "Alekseev, Evgeny"]
[Result "1/2-1/2"]
[ECO "D36"]
[WhiteElo "2745"]
[BlackElo "2505"]
[PlyCount "145"]
[EventDate "2025.02.13"]
[EventType "swiss"]
[EventCountry "NET"]
[TimeControl "600"]
[WhiteClock "0:00:07"]
[BlackClock "0:00:08"]

1. c4 {[%emt 0:00:01]} e6 {[%emt 0:00:17]} 2. Nc3 {[%emt 0:00:06]} d5 {[%emt 0:00:01]} 3. d4 {[%emt 0:00:01]} Nf6 {[%emt 0:00:01]} 4. cxd5 {[%emt 0:00:02]} exd5 {[%emt 0:00:01]} 5. Bg5 {[%emt 0:00:01]} c6 {[%emt 0:00:02]} 6. e3 {[%emt 0:00:02]} Nbd7 {[%emt 0:00:01]} 7. Qc2 {[%emt 0:00:07]} Bd6 {[%emt 0:00:02]} 8. Nf3 {[%emt 0:00:11]} O-O {[%emt 0:00:50]} 9. Bd3 {[%emt 0:00:01]} h6 {[%emt 0:00:08]} 10. Bh4 {[%emt 0:00:01]} Re8 {[%emt 0:00:01]} 11. O-O {[%emt 0:00:06]} Nf8 {[%emt 0:00:10]} 12. Rae1 {[%emt 0:00:10]} Bg4 {[%emt 0:00:04]} 13. Nd2 {[%emt 0:00:04]} Bd7 {[%emt 0:00:24]} 14. Kh1 {[%emt 0:00:31]} Be7 {[%emt 0:00:36]} 15. Qd1 {[%emt 0:00:24]} Bg4 {[%emt 0:00:20]} 16. f3 {[%emt 0:00:41]} Be6 {[%emt 0:00:02]} 17. Bf2 {[%emt 0:00:13]} Rc8 {[%emt 0:00:09]} 18. e4 {[%emt 0:00:14]} dxe4 {[%emt 0:00:06]} 19. fxe4 {[%emt 0:00:01]} b5 {[%emt 0:00:25]} 20. Bg1 {[%emt 0:00:25]} a6 {[%emt 0:00:29]} 21. Qf3 {[%emt 0:00:26]} Qd7 {[%emt 0:00:20]} 22. Nb3 {[%emt 0:00:30]} Rcd8 {[%emt 0:00:10]} 23. e5 {[%emt 0:00:13]} N6h7 {[%emt 0:00:09]} 24. Ne4 {[%emt 0:00:27]} Ng5 {[%emt 0:00:06]} 25. Nxg5 {[%emt 0:00:03]} hxg5 {[%emt 0:00:01]} 26. Be4 {[%emt 0:00:45]} Bd5 {[%emt 0:00:17]} 27. Rc1 {[%emt 0:00:20]} g4 {[%emt 0:00:24]} 28. Qe2 {[%emt 0:00:39]} Ng6 {[%emt 0:00:28]} 29. Bf5 {[%emt 0:00:20]} Be6 {[%emt 0:00:01]} 30. Qxg4 {[%emt 0:00:02]} Bxf5 {[%emt 0:00:02]} 31. Qxf5 {[%emt 0:00:04]} Qd5 {[%emt 0:00:28]} 32. Qf3 {[%emt 0:00:12]} Rc8 {[%emt 0:00:02]} 33. Be3 {[%emt 0:00:20]} Red8 {[%emt 0:00:05]} 34. Kg1 {[%emt 0:00:26]} c5 {[%emt 0:00:37]} 35. Qxd5 {[%emt 0:00:17]} Rxd5 {[%emt 0:00:01]} 36. Nxc5 {[%emt 0:00:09]} Bxc5 {[%emt 0:00:03]} 37. e6 {[%emt 0:00:08]} fxe6 {[%emt 0:00:11]} 38. Rxc5 {[%emt 0:00:11]} Rcxc5 {[%emt 0:00:05]} 39. dxc5 {[%emt 0:00:00]} Ne5 {[%emt 0:00:01]} 40. Rc1 {[%emt 0:00:01]} Nc6 {[%emt 0:00:12]} 41. Kf2 {[%emt 0:00:02]} Kf7 {[%emt 0:00:03]} 42. Ke2 {[%emt 0:00:01]} Re5 {[%emt 0:00:39]} 43. g4 {[%emt 0:00:02]} Ke7 {[%emt 0:00:05]} 44. h4 {[%emt 0:00:02]} Nb4 {[%emt 0:00:01]} 45. c6 {[%emt 0:00:08]} Kd8 {[%emt 0:00:02]} 46. Kf3 {[%emt 0:00:01]} Rd5 {[%emt 0:00:07]} 47. Rc5 {[%emt 0:00:11]} Rxc5 {[%emt 0:00:19]} 48. Bxc5 {[%emt 0:00:00]} Nxc6 {[%emt 0:00:00]} 49. Ke4 {[%emt 0:00:01]} Ke8 {[%emt 0:00:03]} 50. h5 {[%emt 0:00:01]} Kf7 {[%emt 0:00:02]} 51. g5 {[%emt 0:00:00]} Kg8 {[%emt 0:00:06]} 52. g6 {[%emt 0:00:02]} Kh8 {[%emt 0:00:03]} 53. Bd6 {[%emt 0:00:01]} Kg8 {[%emt 0:00:01]} 54. Kf4 {[%emt 0:00:03]} Kh8 {[%emt 0:00:01]} 55. Bc5 {[%emt 0:00:01]} Kg8 {[%emt 0:00:01]} 56. Kg5 {[%emt 0:00:01]} Ne5 {[%emt 0:00:02]} 57. Bd6 {[%emt 0:00:03]} Nc6 {[%emt 0:00:02]} 58. b3 {[%emt 0:00:02]} Nd4 {[%emt 0:00:02]} 59. Be5 {[%emt 0:00:02]} Nc6 {[%emt 0:00:02]} 60. Bc3 {[%emt 0:00:07]} Nd8 {[%emt 0:00:03]} 61. a4 {[%emt 0:00:02]} Nc6 {[%emt 0:00:02]} 62. axb5 {[%emt 0:00:00]} axb5 {[%emt 0:00:00]} 63. Kf4 {[%emt 0:00:01]} Kf8 {[%emt 0:00:02]} 64. Be5 {[%emt 0:00:00]} Kg8 {[%emt 0:00:01]} 65. Bd6 {[%emt 0:00:01]} Nd4 {[%emt 0:00:02]} 66. b4 {[%emt 0:00:01]} Nc6 {[%emt 0:00:02]} 67. Bc5 {[%emt 0:00:00]} Kh8 {[%emt 0:00:02]} 68. Ke4 {[%emt 0:00:01]} Kg8 {[%emt 0:00:01]} 69. Kf4 {[%emt 0:00:00]} Kh8 {[%emt 0:00:00]} 70. Kg5 {[%emt 0:00:00]} Kg8 {[%emt 0:00:01]} 71. Bd6 {[%emt 0:00:00]} Kh8 {[%emt 0:00:02]} 72. Bc5 {[%emt 0:00:01]} Kg8 {[%emt 0:00:01]} 73. Kf4 {[%emt 0:00:00]} 1/2-1/2

[Event "CCT Chessable Masters Play-In 2025"]
[Site "Online"]
[Date "2025.02.17"]
[Round "2.3"]
[White "Aravindh, Chithambaram VR."]
[Black "Antipov, Mikhail Al."]
[Result "1/2-1/2"]
[ECO "A37"]
[WhiteElo "2729"]
[BlackElo "2571"]
[PlyCount "144"]
[EventDate "2025.02.13"]
[EventType "swiss"]
[EventCountry "NET"]
[TimeControl "600"]
[WhiteClock "0:00:49"]
[BlackClock "0:01:17"]

1. c4 {[%emt 0:00:02]} c5 {[%emt 0:00:03]} 2. Nf3 {[%emt 0:00:02]} g6 {[%emt 0:00:02]} 3. g3 {[%emt 0:00:05]} Bg7 {[%emt 0:00:03]} 4. Bg2 {[%emt 0:00:01]} Nc6 {[%emt 0:00:03]} 5. O-O {[%emt 0:00:01]} d6 {[%emt 0:00:12]} 6. Nc3 {[%emt 0:00:03]} Be6 {[%emt 0:00:01]} 7. d3 {[%emt 0:00:42]} Qc8 {[%emt 0:00:04]} 8. Ng5 {[%emt 0:00:08]} Bf5 {[%emt 0:00:10]} 9. Nd5 {[%emt 0:00:06]} h6 {[%emt 0:00:16]} 10. Ne4 {[%emt 0:00:05]} Qd7 {[%emt 0:00:21]} 11. Qa4 {[%emt 0:00:17]} Rc8 {[%emt 0:00:09]} 12. Bf4 {[%emt 0:00:10]} Nd4 {[%emt 0:00:37]} 13. Qxa7 {[%emt 0:00:49]} Nxe2+ {[%emt 0:00:01]} 14. Kh1 {[%emt 0:00:01]} Nxf4 {[%emt 0:00:13]} 15. gxf4 {[%emt 0:00:00]} Rd8 {[%emt 0:01:18]} 16. Rfe1 {[%emt 0:00:58]} e6 {[%emt 0:00:04]} 17. Nec3 {[%emt 0:01:07]} Nf6 {[%emt 0:00:24]} 18. Nb6 {[%emt 0:00:25]} Qe7 {[%emt 0:00:07]} 19. Qxb7 {[%emt 0:01:02]} Qxb7 {[%emt 0:00:03]} 20. Bxb7 {[%emt 0:00:00]} Rb8 {[%emt 0:00:07]} 21. Bc6+ {[%emt 0:00:03]} Ke7 {[%emt 0:00:29]} 22. Nbd5+ {[%emt 0:00:34]} Nxd5 {[%emt 0:00:05]} 23. Nxd5+ {[%emt 0:00:00]} Kd8 {[%emt 0:00:17]} 24. Ne3 {[%emt 0:00:01]} Rxb2 {[%emt 0:00:13]} 25. Nxf5 {[%emt 0:00:14]} gxf5 {[%emt 0:00:00]} 26. Rab1 {[%emt 0:00:05]} Kc7 {[%emt 0:00:22]} 27. Rxb2 {[%emt 0:00:02]} Bxb2 {[%emt 0:00:00]} 28. Bb5 {[%emt 0:00:01]} Bd4 {[%emt 0:00:17]} 29. Kg2 {[%emt 0:00:02]} Rg8+ {[%emt 0:00:25]} 30. Kf3 {[%emt 0:00:01]} e5 {[%emt 0:00:05]} 31. h3 {[%emt 0:00:17]} Bc3 {[%emt 0:00:04]} 32. Rd1 {[%emt 0:00:10]} h5 {[%emt 0:00:20]} 33. a4 {[%emt 0:00:08]} h4 {[%emt 0:00:00]} 34. Ba6 {[%emt 0:00:06]} Kb6 {[%emt 0:00:15]} 35. Bb5 {[%emt 0:00:02]} Kc7 {[%emt 0:00:01]} 36. Ba6 {[%emt 0:00:10]} f6 {[%emt 0:00:02]} 37. Rb1 {[%emt 0:00:02]} Bb4 {[%emt 0:00:01]} 38. Rd1 {[%emt 0:00:03]} Rg7 {[%emt 0:00:06]} 39. Bb5 {[%emt 0:00:03]} Rg6 {[%emt 0:00:01]} 40. Be8 {[%emt 0:00:04]} Rg7 {[%emt 0:00:03]} 41. Bb5 {[%emt 0:00:01]} Ba5 {[%emt 0:00:01]} 42. Ba6 {[%emt 0:00:03]} Bc3 {[%emt 0:00:02]} 43. Bb5 {[%emt 0:00:01]} Rg8 {[%emt 0:00:02]} 44. Ba6 {[%emt 0:00:02]} Bb4 {[%emt 0:00:14]} 45. Bb5 {[%emt 0:00:01]} Ba5 {[%emt 0:00:02]} 46. Ba6 {[%emt 0:00:01]} Re8 {[%emt 0:00:03]} 47. Bb5 {[%emt 0:00:08]} e4+ {[%emt 0:00:01]} 48. dxe4 {[%emt 0:00:03]} Rxe4 {[%emt 0:00:00]} 49. Rd5 {[%emt 0:00:03]} Re1 {[%emt 0:00:17]} 50. Rxf5 {[%emt 0:00:01]} Rh1 {[%emt 0:00:00]} 51. Rxf6 {[%emt 0:00:04]} Rxh3+ {[%emt 0:00:02]} 52. Kg2 {[%emt 0:00:01]} Rd3 {[%emt 0:00:03]} 53. Rf7+ {[%emt 0:00:02]} Kd8 {[%emt 0:00:02]} 54. Rh7 {[%emt 0:00:05]} Rd4 {[%emt 0:00:05]} 55. Rxh4 {[%emt 0:00:01]} Ke7 {[%emt 0:00:00]} 56. Kf3 {[%emt 0:00:02]} Bd2 {[%emt 0:00:03]} 57. Rg4 {[%emt 0:00:02]} Kf6 {[%emt 0:00:01]} 58. f5 {[%emt 0:00:02]} Kxf5 {[%emt 0:00:05]} 59. Rxd4 {[%emt 0:00:01]} cxd4 {[%emt 0:00:00]} 60. Ke2 {[%emt 0:00:01]} Ba5 {[%emt 0:00:01]} 61. Bc6 {[%emt 0:00:01]} Ke5 {[%emt 0:00:01]} 62. Kd3 {[%emt 0:00:01]} Bb6 {[%emt 0:00:01]} 63. Bd5 {[%emt 0:00:01]} Ba5 {[%emt 0:00:01]} 64. f3 {[%emt 0:00:00]} Bc3 {[%emt 0:00:02]} 65. Kc2 {[%emt 0:00:02]} Ba5 {[%emt 0:00:01]} 66. Kd3 {[%emt 0:00:01]} Bc3 {[%emt 0:00:00]} 67. Be4 {[%emt 0:00:01]} Bb4 {[%emt 0:00:01]} 68. Ke2 {[%emt 0:00:01]} Kf4 {[%emt 0:00:01]} 69. Bd5 {[%emt 0:00:01]} Ba5 {[%emt 0:00:02]} 70. Bb7 {[%emt 0:00:01]} Bb4 {[%emt 0:00:01]} 71. Kd3 {[%emt 0:00:01]} Bc3 {[%emt 0:00:02]} 72. Bd5 {[%emt 0:00:03]} Ke5 {[%emt 0:00:02]} 1/2-1/2

[Event "CCT Chessable Masters Play-In 2025"]
[Site "Online"]
[Date "2025.02.17"]
[Round "2.4"]
[White "Svane, Rasmus"]
[Black "Artemiev, Vladislav"]
[Result "1/2-1/2"]
[ECO "D78"]
[WhiteElo "2621"]
[BlackElo "2691"]
[PlyCount "80"]
[EventDate "2025.02.13"]
[EventType "swiss"]
[EventCountry "NET"]
[TimeControl "600"]
[WhiteClock "0:01:40"]
[BlackClock "0:01:37"]

1. Nf3 {[%emt 0:00:01]} d5 {[%emt 0:00:14]} 2. g3 {[%emt 0:00:01]} g6 {[%emt 0:00:02]} 3. Bg2 {[%emt 0:00:01]} Bg7 {[%emt 0:00:01]} 4. d4 {[%emt 0:00:01]} Nf6 {[%emt 0:00:02]} 5. O-O {[%emt 0:00:00]} O-O {[%emt 0:00:02]} 6. c4 {[%emt 0:00:01]} c6 {[%emt 0:00:01]} 7. Qb3 {[%emt 0:00:00]} a5 {[%emt 0:00:08]} 8. Rd1 {[%emt 0:00:02]} a4 {[%emt 0:00:06]} 9. Qb4 {[%emt 0:00:02]} Re8 {[%emt 0:01:24]} 10. Na3 {[%emt 0:00:03]} Qd6 {[%emt 0:00:53]} 11. Qe1 {[%emt 0:00:11]} Be6 {[%emt 0:00:07]} 12. Bf4 {[%emt 0:00:11]} Qd8 {[%emt 0:00:06]} 13. Ng5 {[%emt 0:00:27]} Bf5 {[%emt 0:00:07]} 14. cxd5 {[%emt 0:00:01]} cxd5 {[%emt 0:00:05]} 15. Qb4 {[%emt 0:00:54]} Qd7 {[%emt 0:00:18]} 16. Rac1 {[%emt 0:00:17]} Nc6 {[%emt 0:00:04]} 17. Qe1 {[%emt 0:00:32]} Nh5 {[%emt 0:00:12]} 18. Be3 {[%emt 0:00:10]} Rec8 {[%emt 0:00:40]} 19. Nb5 {[%emt 0:00:22]} Nf6 {[%emt 0:00:34]} 20. Nf3 {[%emt 0:00:31]} Be4 {[%emt 0:00:07]} 21. Nc3 {[%emt 0:00:12]} Bxf3 {[%emt 0:00:39]} 22. Bxf3 {[%emt 0:00:00]} e6 {[%emt 0:00:00]} 23. Qd2 {[%emt 0:00:26]} Ne8 {[%emt 0:00:02]} 24. Nb5 {[%emt 0:00:21]} Ne7 {[%emt 0:00:10]} 25. Qd3 {[%emt 0:00:16]} Nf5 {[%emt 0:00:13]} 26. Bf4 {[%emt 0:00:05]} Rxc1 {[%emt 0:00:01]} 27. Rxc1 {[%emt 0:00:02]} Ra5 {[%emt 0:00:01]} 28. g4 {[%emt 0:00:58]} Nh4 {[%emt 0:00:17]} 29. Nc7 {[%emt 0:00:04]} Nd6 {[%emt 0:00:27]} 30. Bxd6 {[%emt 0:00:07]} Qxd6 {[%emt 0:00:01]} 31. Ne8 {[%emt 0:00:07]} Qb4 {[%emt 0:00:26]} 32. Nxg7 {[%emt 0:00:20]} Kxg7 {[%emt 0:00:02]} 33. Qe3 {[%emt 0:00:31]} Nxf3+ {[%emt 0:00:11]} 34. exf3 {[%emt 0:00:02]} Qd6 {[%emt 0:00:03]} 35. Rc5 {[%emt 0:00:18]} Ra6 {[%emt 0:00:09]} 36. h4 {[%emt 0:00:14]} h6 {[%emt 0:00:07]} 37. Rb5 {[%emt 0:00:04]} Rb6 {[%emt 0:00:05]} 38. Rxb6 {[%emt 0:00:06]} Qxb6 {[%emt 0:00:00]} 39. b3 {[%emt 0:00:07]} axb3 {[%emt 0:00:11]} 40. axb3 {[%emt 0:00:12]} Qd8 {[%emt 0:00:05]} 1/2-1/2

[Event "CCT Chessable Masters Play-In 2025"]
[Site "Online"]
[Date "2025.02.17"]
[Round "2.5"]
[White "Suyarov, Mukhammadzokhid"]
[Black "Wei, Yi"]
[Result "1/2-1/2"]
[ECO "B51"]
[WhiteElo "2465"]
[BlackElo "2755"]
[PlyCount "115"]
[EventDate "2025.02.13"]
[EventType "swiss"]
[EventCountry "NET"]
[TimeControl "600"]
[WhiteClock "0:00:24"]
[BlackClock "0:00:42"]

1. e4 {[%emt 0:00:04]} c5 {[%emt 0:00:07]} 2. Nf3 {[%emt 0:00:02]} d6 {[%emt 0:00:01]} 3. Bb5+ {[%emt 0:00:03]} Nd7 {[%emt 0:00:03]} 4. O-O {[%emt 0:00:03]} a6 {[%emt 0:00:02]} 5. Bxd7+ {[%emt 0:00:02]} Bxd7 {[%emt 0:00:02]} 6. a4 {[%emt 0:00:01]} g6 {[%emt 0:00:25]} 7. c3 {[%emt 0:00:22]} Nf6 {[%emt 0:00:24]} 8. Re1 {[%emt 0:00:08]} Bc6 {[%emt 0:00:07]} 9. e5 {[%emt 0:00:54]} dxe5 {[%emt 0:00:51]} 10. Nxe5 {[%emt 0:00:00]} Rc8 {[%emt 0:00:02]} 11. Nxc6 {[%emt 0:00:43]} Rxc6 {[%emt 0:00:00]} 12. Qf3 {[%emt 0:00:01]} Bg7 {[%emt 0:00:33]} 13. Na3 {[%emt 0:00:02]} c4 {[%emt 0:00:34]} 14. Qe2 {[%emt 0:00:30]} Qc7 {[%emt 0:00:19]} 15. d4 {[%emt 0:00:21]} cxd3 {[%emt 0:00:15]} 16. Qxd3 {[%emt 0:00:04]} O-O {[%emt 0:00:02]} 17. Qf3 {[%emt 0:00:06]} e5 {[%emt 0:00:12]} 18. Bg5 {[%emt 0:00:12]} h6 {[%emt 0:00:08]} 19. Bh4 {[%emt 0:00:05]} Nh5 {[%emt 0:00:19]} 20. Nc2 {[%emt 0:00:33]} Rc4 {[%emt 0:00:07]} 21. Bg3 {[%emt 0:00:11]} Nxg3 {[%emt 0:00:01]} 22. hxg3 {[%emt 0:00:02]} Rd8 {[%emt 0:00:07]} 23. Rad1 {[%emt 0:00:14]} Rxd1 {[%emt 0:00:29]} 24. Rxd1 {[%emt 0:00:00]} Rxa4 {[%emt 0:00:02]} 25. Nb4 {[%emt 0:00:02]} a5 {[%emt 0:00:13]} 26. Nd5 {[%emt 0:00:07]} Qd6 {[%emt 0:00:04]} 27. Qe2 {[%emt 0:00:16]} Kh7 {[%emt 0:00:18]} 28. Qb5 {[%emt 0:00:50]} Qc6 {[%emt 0:00:02]} 29. Qxc6 {[%emt 0:00:06]} bxc6 {[%emt 0:00:01]} 30. Nb6 {[%emt 0:00:01]} Ra2 {[%emt 0:00:10]} 31. Nc4 {[%emt 0:00:01]} e4 {[%emt 0:00:16]} 32. Rd7 {[%emt 0:00:18]} f5 {[%emt 0:00:03]} 33. Rc7 {[%emt 0:00:53]} Ra1+ {[%emt 0:00:05]} 34. Kh2 {[%emt 0:00:00]} Rf1 {[%emt 0:00:02]} 35. f4 {[%emt 0:00:09]} exf3 {[%emt 0:00:21]} 36. gxf3 {[%emt 0:00:00]} Rxf3 {[%emt 0:00:05]} 37. Kg2 {[%emt 0:00:20]} Rd3 {[%emt 0:00:01]} 38. Rxc6 {[%emt 0:00:02]} h5 {[%emt 0:00:09]} 39. Ra6 {[%emt 0:00:10]} Kh6 {[%emt 0:00:17]} 40. Rxa5 {[%emt 0:00:01]} Kg5 {[%emt 0:00:10]} 41. Ra6 {[%emt 0:00:03]} Rd1 {[%emt 0:00:19]} 42. Re6 {[%emt 0:00:28]} Rb1 {[%emt 0:00:20]} 43. Kh3 {[%emt 0:00:04]} Rh1+ {[%emt 0:00:02]} 44. Kg2 {[%emt 0:00:01]} Rb1 {[%emt 0:00:02]} 45. Kh3 {[%emt 0:00:07]} Kh6 {[%emt 0:00:21]} 46. Nd6 {[%emt 0:00:06]} Kh7 {[%emt 0:00:15]} 47. Re7 {[%emt 0:00:09]} Rxb2 {[%emt 0:00:05]} 48. Ne8 {[%emt 0:00:03]} g5 {[%emt 0:00:02]} 49. Nxg7 {[%emt 0:00:17]} Kg6 {[%emt 0:00:04]} 50. g4 {[%emt 0:00:01]} hxg4+ {[%emt 0:00:11]} 51. Kg3 {[%emt 0:00:01]} Rd2 {[%emt 0:00:00]} 52. Nxf5 {[%emt 0:00:12]} Kxf5 {[%emt 0:00:01]} 53. Rf7+ {[%emt 0:00:01]} Kg6 {[%emt 0:00:01]} 54. Rc7 {[%emt 0:00:01]} Kh5 {[%emt 0:00:05]} 55. Rh7+ {[%emt 0:00:01]} Kg6 {[%emt 0:00:00]} 56. Rc7 {[%emt 0:00:00]} Kh5 {[%emt 0:00:01]} 57. Rh7+ {[%emt 0:00:01]} Kg6 {[%emt 0:00:00]} 58. Rc7 {[%emt 0:00:01]} 1/2-1/2